fUSD/lending_fUSD_20240922
["ID","MTS","AMOUNT","RATE_DAILY","PERIOD"]
[338876475,1726980637860,-25555.37947221,0.000147,2]
[338876500,1726980639425,-135211.66830527,0.000147,2]
[338876501,1726980639437,-300.0,0.000147,5]
[338876502,1726980639447,-165.75701898,0.000147,2]
[338876503,1726980639458,-4103.30015242,0.000147,2]
[338876504,1726980639469,-157.12,0.00014723,2]
[338876505,1726980639480,-13555.487377,0.00014723,2]
[338876506,1726980639490,-663.529206,0.00014723,2]
[338876507,1726980639501,-14654.114069,0.00014723,2]
[338876508,1726980639511,-389.044455,0.00014723,2]
[338876509,1726980639523,-150.0,0.00014724,2]
[338876510,1726980639533,-1500.0,0.00014727,2]
[338876511,1726980639542,-150.0,0.00014728,2]
[338876512,1726980639552,-150.0,0.00014728,2]
[338876513,1726980639561,-150.0,0.00014728,2]
[338876514,1726980639571,-150.0,0.00014731,2]
[338876515,1726980639580,-4103.30015242,0.00014733,2]
[338876516,1726980639590,-150.0,0.00014735,2]
[338876517,1726980639600,-1500.0,0.0001474,2]
[338876518,1726980639609,-150.0,0.00014742,2]
[338876519,1726980639620,-150.0,0.00014745,2]
[338876520,1726980639630,-1500.0,0.00014748,2]
[338876521,1726980639642,-632.854,0.00014749,2]
[338876522,1726980639652,-453.778,0.00014749,2]
[338876523,1726980639661,-1262.0,0.00014749,2]
[338876524,1726980639671,-1549.0,0.00014749,2]
[338876525,1726980639681,-558.0,0.00014749,2]
[338876526,1726980639690,-150.0,0.00014749,2]
[338876527,1726980639699,-1903.0,0.00014749,2]
[338876529,1726980639709,-553.0,0.00014749,2]
[338876531,1726980639718,-806.0,0.00014749,2]
[338876533,1726980639728,-248.0,0.00014749,2]
[338876535,1726980639736,-3347.0,0.00014749,2]
[338876537,1726980639746,-1915.0,0.00014749,2]
[338876539,1726980639757,-1147.0,0.00014749,2]
[338876541,1726980639767,-181.12,0.00014749,2]
[338876543,1726980639778,-9350.41,0.00014749,2]
[338876546,1726980639790,-5867.0,0.00014749,2]
[338876548,1726980639801,-1081.0,0.00014749,2]
[338876550,1726980639811,-165.75701898,0.0001475,2]
[338876552,1726980639821,-171.615,0.00014751,2]
[338876554,1726980639831,-680.887,0.00014751,2]
[338876556,1726980639840,-150.0,0.00014752,2]
[338876558,1726980639851,-1500.0,0.00014754,2]
[338876560,1726980639861,-150.0,0.00014758,2]
[338876562,1726980639871,-150.0,0.00014762,2]
[338876564,1726980639881,-150.0,0.00014762,2]
[338876566,1726980639891,-150.0,0.00014765,2]
[338876568,1726980639903,-150.0,0.00014765,2]
[338876571,1726980639914,-150.0,0.00014766,2]
[338876572,1726980639925,-4103.30015242,0.00014767,2]
[338876573,1726980639935,-1500.0,0.00014767,2]
[338876574,1726980639945,-150.0,0.00014767,2]
[338876575,1726980639955,-150.0,0.00014773,2]
[338876576,1726980639967,-500.0,0.00014781,2]
[338876577,1726980639978,-200.0,0.00014781,2]
[338876578,1726980639988,-150.0,0.00014783,2]
[338876579,1726980639997,-150.0,0.00014783,2]
[338876580,1726980640007,-150.0,0.00014783,2]
[338876581,1726980640018,-150.0,0.00014787,2]
[338876582,1726980640028,-150.0,0.00014788,2]
[338876583,1726980640037,-1500.0,0.0001479,2]
[338876584,1726980640048,-150.0,0.00014792,2]
[338876585,1726980640058,-150.0,0.00014795,2]
[338876586,1726980640068,-1500.0,0.00014796,2]
[338876587,1726980640079,-463493.31711886,0.000148,2]
[338876588,1726980640089,-6281.74510856,0.000148,2]
[338876589,1726980640098,-190.25369982,0.000148,2]
[338876590,1726980640108,-3500.0,0.000148,2]
[338876591,1726980640119,-2000.0,0.000148,2]
[338876592,1726980640128,-200.0,0.000148,2]
[338876593,1726980640138,-165.75701898,0.000148,2]
[338876594,1726980640147,-4103.30015242,0.000148,2]
[338876595,1726980640156,-671.0,0.000148,5]
[338876596,1726980640166,-500.0,0.00014803,2]
[338876597,1726980640179,-150.0,0.00014806,2]
[338876598,1726980640190,-150.0,0.00014807,2]
[338876599,1726980640200,-150.0,0.0001481,2]
[338876600,1726980640210,-500.0,0.00014812,2]
[338876601,1726980640220,-150.0,0.00014812,2]
[338876602,1726980640230,-150.0,0.00014812,2]
[338876603,1726980640242,-150.0,0.00014815,2]
[338876604,1726980640252,-150.0,0.00014816,2]
[338876605,1726980640263,-150.0,0.0001482,2]
[338876606,1726980640272,-500.0,0.00014821,2]
[338876607,1726980640284,-150.0,0.00014821,2]
[338876608,1726980640294,-150.0,0.00014822,2]
[338876609,1726980640304,-150.0,0.00014822,2]
[338876610,1726980640317,-150.0,0.00014826,2]
[338876611,1726980640329,-150.0,0.00014828,2]
[338876612,1726980640338,-500.0,0.0001483,2]
[338876613,1726980640347,-500.0,0.0001483,2]
[338876614,1726980640357,-150.0,0.0001483,2]
[338876615,1726980640367,-4103.30015242,0.00014833,2]
[338876616,1726980640377,-150.0,0.00014835,2]
[338876617,1726980640388,-150.0,0.00014835,2]
[338876618,1726980640397,-150.0,0.00014837,2]
[338876619,1726980640406,-155.08548893,0.00014838,2]
[338876620,1726980640416,-500.0,0.00014838,2]
[338876621,1726980640426,-500.0,0.00014838,2]
[338876622,1726980640434,-150.0,0.00014839,2]
[338876623,1726980640443,-150.0,0.00014839,2]
[338876624,1726980640452,-150.0,0.00014842,2]
[338876625,1726980640462,-150.0,0.00014843,2]
[338876626,1726980640472,-150.0,0.00014846,2]
[338876627,1726980640481,-500.0,0.00014847,2]
[338876628,1726980640490,-500.0,0.00014847,2]
[338876629,1726980640500,-150.0,0.00014848,2]
[338876630,1726980640510,-150.67544,0.0001485,2]
[338876631,1726980640519,-150.0,0.0001485,2]
[338876632,1726980640528,-165.75701898,0.0001485,2]
[338876633,1726980640537,-150.0,0.00014851,2]
[338876634,1726980640547,-150.0,0.00014851,2]
[338876635,1726980640557,-150.0,0.00014855,2]
[338876636,1726980640566,-500.0,0.00014856,2]
[338876637,1726980640576,-150.0,0.00014856,2]
[338876638,1726980640586,-500.0,0.00014856,2]
[338876639,1726980640595,-150.0,0.00014857,2]
[338876640,1726980640605,-150.0,0.00014858,2]
[338876641,1726980640615,-150.0,0.00014858,2]
[338876642,1726980640626,-150.0,0.00014859,2]
[338876643,1726980640636,-500.0,0.00014865,2]
[338876644,1726980640646,-500.0,0.00014865,2]
[338876645,1726980640655,-4103.30015242,0.00014867,2]
[338876646,1726980640664,-519.0,0.00014868,2]
[338876647,1726980640674,-1500.0,0.00014868,2]
[338876648,1726980640683,-150.0,0.0001487,2]
[338876649,1726980640692,-150.0,0.00014872,2]
[338876650,1726980640701,-150.0,0.00014873,2]
[338876651,1726980640710,-150.0,0.00014873,2]
[338876652,1726980640720,-500.0,0.00014874,2]
[338876653,1726980640731,-500.0,0.00014874,2]
[338876654,1726980640740,-150.0,0.00014875,2]
[338876655,1726980640750,-150.0,0.00014879,2]
[338876656,1726980640760,-150.0,0.0001488,2]
[338876657,1726980640770,-500.0,0.00014882,2]
[338876658,1726980640779,-500.0,0.00014882,2]
[338876659,1726980640788,-1500.0,0.00014883,2]
[338876660,1726980640797,-150.0,0.00014885,2]
[338876661,1726980640806,-150.0,0.00014886,2]
[338876662,1726980640815,-150.0,0.00014887,2]
[338876663,1726980640824,-150.0,0.00014888,2]
[338876664,1726980640834,-150.0,0.0001489,2]
[338876665,1726980640843,-150.0,0.00014891,2]
[338876666,1726980640856,-150.0,0.00014891,2]
[338876667,1726980640866,-500.0,0.00014891,2]
[338876668,1726980640876,-500.0,0.00014891,2]
[338876669,1726980640887,-150.0,0.00014892,2]
[338876670,1726980640896,-150.0,0.00014893,2]
[338876671,1726980640906,-374.14795505,0.00014893,2]
[338876672,1726980640915,-150.0,0.00014898,2]
[338876673,1726980640925,-158.4840471,0.00014899,2]
[338876674,1726980640935,-150.0,0.00014899,2]
[338876675,1726980640944,-2579.41768,0.000149,2]
[338876676,1726980640953,-4000.0,0.000149,3]
[338876677,1726980640963,-3011.6340135,0.000149,2]
[338876678,1726980640972,-500.0,0.000149,2]
[338876679,1726980640982,-463.67,0.000149,2]
[338876680,1726980640991,-500.0,0.000149,2]
[338876681,1726980641000,-511.3460624,0.000149,2]
[338876682,1726980641009,-1980.90414716,0.000149,2]
[338876683,1726980641018,-159.85984811,0.000149,2]
[338876684,1726980641027,-157.83790196,0.000149,2]
[338876685,1726980641037,-7500.0,0.000149,2]
[338876686,1726980641047,-1000.0,0.000149,2]
[338876687,1726980641056,-228.0,0.000149,2]
[338876688,1726980641065,-360.0,0.000149,2]
[338876689,1726980641075,-165.75701898,0.000149,2]
[338876690,1726980641086,-371.49083159,0.000149,2]
[338876691,1726980641095,-152.77667289,0.000149,2]
[338876692,1726980641104,-4103.30015242,0.000149,2]
[338876693,1726980641114,-203.80064605,0.00014901,2]
[338876694,1726980641123,-13555.487377,0.00014903,2]
[338876695,1726980641132,-663.529206,0.00014903,2]
[338876696,1726980641141,-14654.114069,0.00014903,2]
[338876697,1726980641150,-389.044455,0.00014903,2]
[338876698,1726980641159,-150.0,0.00014904,2]
[338876699,1726980641169,-150.0,0.00014904,2]
[338876700,1726980641179,-150.0,0.00014905,2]
[338876701,1726980641188,-150.0,0.00014906,2]
[338876702,1726980641197,-150.0,0.00014908,2]
[338876703,1726980641206,-150.0,0.0001491,2]
[338876704,1726980641215,-150.0,0.00014913,2]
[338876705,1726980641225,-1500.0,0.00014917,2]
[338876706,1726980641234,-150.0,0.00014919,2]
[338876707,1726980641243,-150.0,0.00014922,2]
[338876708,1726980641253,-150.0,0.00014923,2]
[338876709,1726980641262,-150.0,0.00014925,2]
[338876710,1726980641272,-150.0,0.00014927,2]
[338876711,1726980641281,-150.0,0.0001493,2]
[338876712,1726980641291,-150.0,0.00014932,2]
[338876713,1726980641300,-1500.0,0.00014934,2]
[338876714,1726980641310,-150.0,0.00014935,2]
[338876715,1726980641320,-150.0,0.00014939,2]
[338876716,1726980641330,-150.0,0.00014941,2]
[338876717,1726980641339,-150.0,0.00014943,2]
[338876718,1726980641350,-150.0,0.00014943,2]
[338876719,1726980641361,-190.68205311,0.00014946,2]
[338876720,1726980641372,-1514.55162912,0.00014949,2]
[338876721,1726980641383,-150.0,0.00014951,2]
[338876722,1726980641393,-150.0,0.00014953,2]
[338876723,1726980641405,-150.0,0.00014956,2]
[338876724,1726980641415,-150.0,0.00014961,2]
[338876725,1726980641425,-150.0,0.00014965,2]
[338876726,1726980641435,-1500.0,0.00014967,2]
[338876727,1726980641446,-250.0,0.0001497,2]
[338876728,1726980641456,-250.0,0.0001497,2]
[338876729,1726980641466,-352.57503771,0.0001497,2]
[338876730,1726980641477,-500.0,0.00014973,2]
[338876731,1726980641487,-500.0,0.00014973,2]
[338876732,1726980641497,-150.0,0.00014982,2]
[338876733,1726980641507,-150.0,0.00014984,2]
[338876734,1726980641517,-150.0,0.00014985,2]
[338876735,1726980641527,-500.0,0.00014986,2]
[338876736,1726980641537,-500.0,0.00014986,2]
[338876737,1726980641547,-578.54695556,0.00014988,2]
[338876738,1726980641557,-5000.0,0.0001499,31]
[338876739,1726980641567,-374.14795505,0.0001499,2]
[338876740,1726980641577,-374.14795505,0.0001499,2]
[338876741,1726980641587,-157.12,0.0001499,2]
[338876742,1726980641596,-157.12,0.0001499,2]
[338876743,1726980641606,-157.12,0.0001499,2]
[338876744,1726980641617,-157.12,0.0001499,2]
[338876745,1726980641627,-157.12,0.0001499,2]
[338876746,1726980641637,-157.12,0.0001499,2]
[338876747,1726980641646,-150.0,0.00014993,2]
[338876748,1726980641658,-258.17422249,0.00014993,2]
[338876749,1726980641669,-262.1738392,0.00014993,2]
[338876750,1726980641681,-3874.4935885,0.00014993,2]
[338876751,1726980641690,-2653.0791575,0.00014993,2]
[338876752,1726980641701,-150.0,0.00014994,2]
[338876753,1726980641712,-150.0,0.00014995,2]
[338876754,1726980641722,-150.0,0.00014996,2]
[338876755,1726980641733,-150.0,0.00014997,2]
[338876756,1726980641743,-1500.0,0.00014997,2]
[338876757,1726980641752,-150.0,0.00014998,2]
[338876758,1726980641762,-500.0,0.00014999,2]
[338876759,1726980641771,-500.0,0.00014999,2]
[338876760,1726980641780,-500.0,0.00014999,2]
[338876761,1726980641790,-500.0,0.00014999,2]
[338876762,1726980641799,-432.06639584,0.00014999,2]
[338876763,1726980641808,-463.67569124,0.00014999,2]
[338876764,1726980641817,-354.53141402,0.00014999,2]
[338876765,1726980641826,-184.44840299,0.00014999,2]
[338876766,1726980641836,-997.63445612,0.00015,2]
[338876767,1726980641845,-17141.41299578,0.00015,2]
[338876768,1726980641859,-445.98548972,0.00015,2]
[338876769,1726980641868,-184.44840299,0.00015,2]
[338876770,1726980641878,-513463.39097633,0.00015,2]
[338876771,1726980641887,-8822009.24523959,0.00015,30]
[338876772,1726980642013,-422816.604425,0.00015,30]
[338876773,1726980642024,-402281.20106968,0.00015,30]
[338876774,1726980642035,-150736.87825744,0.00015,30]
[338876775,1726980642047,-2706.49501907,0.00015,30]
[338876776,1726980642059,-641.2750497,0.00015,30]
[338876777,1726980642070,-407.1298491,0.00015,30]
[338876778,1726980642082,-1897.44,0.00015,30]
[338876779,1726980642093,-820.17846311,0.00015,30]
[338876780,1726980642117,-500.0,0.00014973,2]
[338876781,1726980642127,-217210.0,0.00015,30]
[338876787,1726980645444,-6749.283012,0.00014364,2]
[338876788,1726980645455,-322.260508,0.00014364,2]
[338876789,1726980645465,-6749.283012,0.00014544,2]
[338876790,1726980645477,-322.260508,0.00014544,2]
[338876791,1726980645487,-2559.20423205,0.00014723,2]
[338876792,1726980645499,-4190.07877995,0.00014723,2]
[338876793,1726980645511,-322.260508,0.00014723,2]
[338876794,1726980645522,-1540.68900564,0.000149,2]
[338876795,1726980645532,-6749.283012,0.00014903,2]
[338876796,1726980645542,-322.260508,0.00014903,2]
[338876797,1726980645552,-545.48128225,0.00015,30]
[338876798,1726980789531,1050.0,0.00011,2]
[338876799,1726980856996,498.64,0.00012045,2]
[338876800,1726980881698,151.58484263,0.0001,2]
[338876801,1726981059541,153.52,0.00010959,2]
[338876802,1726981389235,521.07,0.00011521,2]
[338876805,1726981640281,156.5,0.00012,2]
[338876806,1726981723082,150.0,0.00015,60]
[338876807,1726981723560,150.0,0.00016,60]
[338876808,1726981723971,150.0,0.00017,60]
[338876809,1726981724438,150.0,0.00018,60]
[338876810,1726981724863,175.919939,0.00019,60]
[338876820,1726981820745,218.02,0.00010959,2]
[338876826,1726981831539,-396.64994585,0.0001319,2]
[338876829,1726981831704,-1290.59005415,0.0001319,2]
[338876830,1726981831714,-374.11,0.00013278,2]
[338876831,1726981831724,-230.06,0.00013279,2]
[338876832,1726981831733,-250.0,0.00013368,2]
[338876833,1726981831743,-300.0,0.00013383,2]
[338876834,1726981831753,-23900.0,0.00013384,2]
[338876835,1726981831762,-965.45,0.00013435,2]
[338876836,1726981831771,-592.58,0.00013513,2]
[338876837,1726981831781,-250.0,0.00013547,2]
[338876838,1726981831790,-376.39,0.00013559,2]
[338876839,1726981831799,-1380.52,0.00013559,2]
[338876840,1726981831810,-369.55,0.00013586,2]
[338876841,1726981831819,-384.421,0.00013616,2]
[338876842,1726981831831,-615.579,0.00013616,2]
[338876843,1726981831840,-500.0,0.000137,5]
[338876844,1726981831850,-499.99,0.00013701,2]
[338876845,1726981831859,-890.24,0.00013701,2]
[338876846,1726981831868,-521.07,0.00013785,2]
[338876847,1726981831878,-8388.75002856,0.00014047,2]
[338876848,1726981831887,-167.23,0.0001408,2]
[338876849,1726981831896,-628.084,0.0001421,2]
[338876850,1726981831905,-171.615,0.0001421,2]
[338876851,1726981831915,-4996.97016155,0.000143,2]
[338876852,1726981831924,-846.1556,0.000143,2]
[338876853,1726981831933,-4996.97016153,0.00014311,2]
[338876854,1726981831944,-4996.97016153,0.00014322,2]
[338876855,1726981831953,-9125.48240122,0.00014364,2]
[338876856,1726981831964,-725.48861933,0.00014364,2]
[338876869,1726981837840,-4996.97016153,0.00014333,2]
[338876870,1726981837851,-4996.97016153,0.00014344,2]
[338876871,1726981837862,-3055.56540345,0.00014364,2]
[338876872,1726981837871,-713.790385,0.00014364,2]
[338876873,1726981837881,-194.441136,0.00014364,2]
[338876874,1726981837891,-184.084957,0.00014364,2]
[338876875,1726981837908,-946.9767978,0.00014364,2]
[338876876,1726981837923,-1212.8724092,0.00014364,2]
[338876877,1726981837933,-194.522228,0.00014364,2]
[338876878,1726981837943,-204.655788,0.00014364,2]
[338876879,1726981837953,-437.510458,0.00014364,2]
[338876880,1726981837962,-2450.3223,0.0001439,2]
[338876881,1726981837972,-8203.93,0.000144,2]
[338876882,1726981837982,-74.23365778,0.000144,2]
[338876883,1726981837994,-2084.43894222,0.000144,2]
[338876884,1726981838003,-162.4233,0.000144,2]
[338876885,1726981838013,-252.3535,0.000144,2]
[338876886,1726981838022,-5367.3529,0.000144,2]
[338876887,1726981838031,-1584.7305,0.000144,2]
[338876888,1726981838041,-5204.22108108,0.000144,2]
[338876889,1726981838054,-2034.97829046,0.000144,2]
[338876891,1726981838072,-54883.01952846,0.000144,2]
[338876893,1726981838082,-1000.0,0.000144,2]
[338876895,1726981838092,-788.3727,0.000144,2]
[338876896,1726981838101,-1924.6496,0.000144,2]
[338876897,1726981838111,-2595.4823,0.000144,2]
[338876898,1726981838122,-331.51403797,0.000144,2]
[338876899,1726981838132,-1000.0,0.000144,4]
[338876900,1726981838141,-1000.0,0.000144,4]
[338876901,1726981838151,-1000.0,0.000144,4]
[338876902,1726981838161,-450.0,0.000144,5]
[338876903,1726981838171,-1000.0,0.000144,3]
[338876904,1726981838180,-1000.0,0.000144,3]
[338876905,1726981838189,-1000.0,0.000144,4]
[338876906,1726981838199,-1000.0,0.000144,4]
[338876907,1726981838208,-1000.0,0.000144,5]
[338876908,1726981838218,-339.39239905,0.000144,2]
[338876909,1726981838227,-893.66895658,0.000144,2]
[338876910,1726981838236,-460.0,0.000144,5]
[338876911,1726981838246,-1000.0,0.000144,4]
[338876912,1726981838256,-565.1503236,0.000144,2]
[338876913,1726981838266,-150.0,0.00014469,2]
[338876914,1726981838276,-177.662,0.00014469,2]
[338876915,1726981838285,-5867.0,0.00014469,2]
[338876917,1726981838295,-1079.0,0.00014469,2]
[338876918,1726981838304,-500.0,0.00014473,2]
[338876919,1726981838314,-502.71033855,0.00014473,2]
[338876920,1726981838323,-500.0,0.00014473,2]
[338876921,1726981838332,-500.0,0.00014473,2]
[338876922,1726981838342,-267.16275646,0.00014499,2]
[338876923,1726981838352,-172.09170026,0.00014499,2]
[338876924,1726981838361,-500.0,0.00014499,2]
[338876925,1726981838371,-500.0,0.00014499,2]
[338876926,1726981838380,-500.0,0.00014499,2]
[338876927,1726981838390,-421.58435701,0.00014499,2]
[338876928,1726981838400,-404799.84109394,0.000145,2]
[338876929,1726981838409,-98078.96069288,0.000145,2]
[338876930,1726981838421,-6595.11122125,0.000145,2]
[338876933,1726981839677,-780.86862004,0.000145,2]
[338876934,1726981839734,-2229.27658016,0.000145,2]
[338876935,1726981839747,-252.68923298,0.000145,2]
[338876942,1726981845594,-250.0,0.00013902,2]
[338876943,1726981845604,-769.338709,0.00014356,2]
[338876944,1726981845706,-4227.63145253,0.00014356,2]
[338876945,1726981845716,-218.75523,0.00014364,2]
[338876946,1726981845726,-7054.30297175,0.000145,2]
[338876947,1726981846092,-141360.33308636,0.000145,2]
[338876948,1726981846104,-3832.13280069,0.000145,2]
[338876949,1726981846118,-1531.02345807,0.000145,2]
[338877043,1726981953649,485.08,0.00011729,2]
[338877044,1726982021950,150.0,0.00015,60]
[338877045,1726982022273,150.0,0.00016,60]
[338877046,1726982022723,176.070841,0.00017,60]
[338877047,1726982321939,150.0,0.00015,60]
[338877048,1726982509663,172.59,0.00010959,2]
[338877049,1726982536785,478.17,0.0001148,2]
[338877050,1726982575707,-28400.0,0.00015,30]
[338877051,1726982591846,1050.0,0.00011,2]
[338877052,1726982716565,154.1,0.00010798,2]
[338877090,1726983031750,-362.48,0.00012836,2]
[338877092,1726983031760,-300.0,0.00012899,2]
[338877094,1726983031769,-1269.53436859,0.000129,2]
[338877095,1726983031779,-331.51403797,0.000129,2]
[338877096,1726983031789,-297.8896522,0.000129,2]
[338877097,1726983031798,-445.53644755,0.000129,2]
[338877098,1726983031809,-365.39262213,0.000129,2]
[338877099,1726983031818,-188.3834412,0.000129,2]
[338877100,1726983031828,-156.4926977,0.00012944,2]
[338877101,1726983031839,-3292.67320499,0.00012944,2]
[338877102,1726983031848,-500.0,0.00012973,2]
[338877103,1726983031857,-500.0,0.00012973,2]
[338877104,1726983031867,-502.71033855,0.00012973,2]
[338877105,1726983031876,-500.0,0.00012973,2]
[338877106,1726983031885,-154.82,0.0001299,2]
[338877107,1726983031894,-154.82,0.0001299,2]
[338877108,1726983031903,-150.0,0.00012998,2]
[338877109,1726983031912,-172.09170026,0.00012999,2]
[338877110,1726983031921,-267.16275646,0.00012999,2]
[338877111,1726983031930,-500.0,0.00012999,2]
[338877112,1726983031939,-223.85627498,0.00012999,2]
[338877113,1726983031948,-500.0,0.00012999,2]
[338877114,1726983031957,-500.0,0.00012999,2]
[338877115,1726983031966,-484.88060112,0.00012999,2]
[338877116,1726983031977,-15.11939888,0.00012999,2]
[338877117,1726983031986,-316.84351002,0.00012999,2]
[338877118,1726983031997,-183.15648998,0.00012999,2]
[338877119,1726983032006,-500.0,0.00012999,2]
[338877120,1726983032015,-4645.0812833,0.00013,2]
[338877121,1726983032026,-818.15190406,0.00013,2]
[338877122,1726983032038,-818.95666546,0.00013,2]
[338877123,1726983032051,-269.0000005,0.00013,2]
[338877124,1726983032062,-1992.05211866,0.00013,2]
[338877125,1726983032074,-8857.72706137,0.00013,2]
[338877126,1726983032085,-479981.19500954,0.00013,2]
[338877127,1726983032095,-8250.65169538,0.00013,2]
[338877128,1726983032106,-266.95294903,0.00013,2]
[338877129,1726983032117,-415.09721781,0.00013,2]
[338877130,1726983032128,-308.807424,0.00013,2]
[338877131,1726983032143,-885.09342961,0.00013,2]
[338877141,1726983037819,-1292.79352742,0.00013,2]
[338877142,1726983037878,-2944.34240302,0.00013,2]
[338877143,1726983037889,-9101.3781579,0.00013,2]
[338877144,1726983037900,-8693.51986952,0.00013,2]
[338877145,1726983037911,-1381.24087936,0.00013,2]
[338877146,1726983037922,-1370.23840371,0.00013,2]
[338877147,1726983037994,-3915.51750113,0.00013,2]
[338877148,1726983038003,-24465.82136,0.00013,2]
[338877149,1726983038013,-780074.01610081,0.00013,2]
[338877150,1726983038055,-999.05409889,0.00013,2]
[338877151,1726983038066,-2395.96216897,0.00013,2]
[338877152,1726983038077,-452.76,0.00013,2]
[338877153,1726983038088,-31253.03540949,0.00013,2]
[338877154,1726983038098,-1000.0,0.00013,2]
[338877155,1726983038109,-127382.06183781,0.00013,2]
[338877156,1726983038120,-565.69310816,0.00013,2]
[338877157,1726983038131,-33182.59427661,0.00013,2]
[338877158,1726983038142,-475.75442245,0.00013,2]
[338877159,1726983038153,-319.445,0.00013,2]
[338877160,1726983038170,-373.72250086,0.00013,2]
[338877161,1726983038229,-587747.26278476,0.00013,2]
[338877197,1726983040189,-4439.27591135,0.00013,2]
[338877295,1726983042935,-337.38376256,0.000129,2]
[338877296,1726983042944,-86.58698602,0.00013,2]
[338877297,1726983042955,-466.57035113,0.00013,2]
[338877298,1726983042994,-1074.67514245,0.00013,2]
[338877299,1726983043006,-635.21123001,0.00013,2]
[338877303,1726983045847,-185.11540451,0.000129,2]
[338877304,1726983045857,-786.15942405,0.00013,2]
[338877305,1726983045871,-39786.82373249,0.00013,2]
[338877306,1726983045888,-359.89413236,0.00013,2]
[338877307,1726983046045,-139020.46738261,0.00013,2]
[338877308,1726983046058,-4221.14887473,0.00013,2]
[338877309,1726983046069,-10453.70827459,0.00013,2]
[338877311,1726983122334,472.67,0.00011068,2]
[338877312,1726983127369,159.08,0.00010959,2]
[338877319,1726983677970,156.92,0.00010959,2]
[338877320,1726983714068,500.0,0.0001,2]
[338877321,1726983714416,500.0,5e-05,2]
[338877322,1726983772288,500.0,0.0001,2]
[338877323,1726983772671,500.0,5e-05,2]
[338877324,1726983784855,627.06794118,0.00022,120]
[338877325,1726983801609,468.1,0.00010567,2]
[338877326,1726983914795,150.00000001,0.00011688,2]
[338877351,1726984217440,153.52,0.00010959,2]
[338877353,1726984231932,-187.05,0.00012371,2]
[338877354,1726984231942,-250.0,0.00012405,2]
[338877355,1726984231951,-2586.18457017,0.00012419,2]
[338877356,1726984231962,-844.63596783,0.00012419,2]
[338877357,1726984231975,-3651.07255488,0.00012419,2]
[338877358,1726984231997,-745.31368766,0.00012419,2]
[338877359,1726984232167,-905.87379257,0.00012419,2]
[338877367,1726984238215,-2008.63848988,0.00012419,2]
[338877368,1726984238226,-1000.0,0.00012419,2]
[338877369,1726984238274,-1042.82955653,0.00012419,2]
[338877370,1726984238287,-10279.0,0.00012419,2]
[338877371,1726984238331,-836.45138048,0.00012419,2]
[338877372,1726984238342,-255.44,0.00012423,2]
[338877373,1726984238353,-250.0,0.00012591,2]
[338877374,1726984238362,-778.79,0.0001274,2]
[338877375,1726984238372,-16.25598054,0.0001274,2]
[338877376,1726984238389,-160.95101946,0.0001274,2]
[338877377,1726984238398,-150.0,0.00012767,2]
[338877378,1726984238407,-169.89,0.00012791,2]
[338877379,1726984238417,-2111.04,0.000128,2]
[338877380,1726984238427,-468.1,0.00012831,2]
[338877381,1726984238436,-6276.66917415,0.0001287,2]
[338877382,1726984238445,-499.99,0.0001287,2]
[338877383,1726984238454,-221.5,0.00012884,2]